fUST/lending_fUST_20250225
["ID","MTS","AMOUNT","RATE_DAILY","PERIOD"]
[354352431,1740439849362,-500.0,0.00014221,2]
[354352432,1740439849372,-1000.0,0.00014221,2]
[354352433,1740439849381,-406.96,0.00014273,2]
[354352434,1740439849392,-500.0,0.00014273,2]
[354352435,1740439849401,-500.0,0.00014273,2]
[354352436,1740439849411,-500.0,0.00014273,2]
[354352437,1740439849420,-500.0,0.00014273,2]
[354352438,1740439849431,-500.0,0.00014273,2]
[354352439,1740439849443,-502.24,0.00014273,2]
[354352440,1740439849453,-550.97,0.00014273,2]
[354352441,1740439849462,-516.75082193,0.00014273,2]
[354352442,1740439849472,-500.0,0.00014273,2]
[354352443,1740439849482,-308.07,0.00014273,2]
[354352444,1740439849491,-500.0,0.00014273,2]
[354352445,1740439849500,-500.0,0.00014273,2]
[354352446,1740439849511,-500.0,0.00014273,2]
[354352447,1740439849521,-500.0,0.00014273,2]
[354352448,1740439849531,-500.0,0.00014273,2]
[354352449,1740439849540,-500.0,0.00014273,2]
[354352450,1740439849549,-187.82799862,0.00014273,2]
[354352451,1740439849559,-500.0,0.00014273,2]
[354352452,1740439849568,-500.0,0.00014273,2]
[354352453,1740439849578,-500.0,0.00014273,2]
[354352454,1740439849587,-1044.38,0.00014273,2]
[354352455,1740439849597,-500.0,0.00014273,2]
[354352456,1740439849607,-1560.73,0.00014273,2]
[354352457,1740439849616,-500.0,0.00014273,2]
[354352458,1740439849625,-1419.86,0.00014273,2]
[354352459,1740439849635,-500.0,0.00014273,2]
[354352460,1740439849645,-1146.58,0.00014273,2]
[354352461,1740439849654,-500.0,0.00014273,2]
[354352462,1740439849664,-500.0,0.00014273,2]
[354352463,1740439849674,-500.0,0.00014273,2]
[354352464,1740439849684,-500.0,0.00014273,2]
[354352465,1740439849693,-500.0,0.00014273,2]
[354352466,1740439849703,-500.0,0.00014273,2]
[354352467,1740439849712,-500.0,0.00014273,2]
[354352468,1740439849722,-500.0,0.00014273,2]
[354352469,1740439849731,-500.0,0.00014273,2]
[354352470,1740439849740,-853.98,0.00014273,2]
[354352471,1740439849750,-1614.85,0.00014273,2]
[354352472,1740439849759,-500.0,0.00014273,2]
[354352473,1740439849769,-500.0,0.00014273,2]
[354352474,1740439849778,-500.0,0.00014273,2]
[354352475,1740439849788,-500.0,0.00014273,2]
[354352476,1740439849797,-500.0,0.00014273,2]
[354352477,1740439849807,-500.0,0.00014273,2]
[354352478,1740439849816,-517.45,0.00014273,2]
[354352479,1740439849826,-9318.21,0.00014273,2]
[354352480,1740439849835,-500.0,0.00014273,2]
[354352481,1740439849845,-500.0,0.00014273,2]
[354352482,1740439850012,-500.0,0.00014273,2]
[354352483,1740439850022,-46717.32,0.00014273,2]
[354352484,1740439850032,-500.0,0.00014273,2]
[354352485,1740439850041,-366.41078034,0.00014273,2]
[354352486,1740439850051,-2744.75,0.00014273,2]
[354352487,1740439850060,-4421.62,0.00014273,2]
[354352488,1740439850070,-513.92,0.00014273,2]
[354352489,1740439850081,-926.35,0.00014273,2]
[354352490,1740439850091,-2109.41,0.00014273,2]
[354352491,1740439850101,-813.65,0.00014273,2]
[354352492,1740439850110,-500.0,0.00014273,2]
[354352493,1740439850120,-2207.91,0.00014273,2]
[354352494,1740439850130,-14925.89,0.00014273,2]
[354352495,1740439850139,-1307.62,0.00014273,2]
[354352496,1740439850149,-674.09,0.00014273,2]
[354352497,1740439850158,-500.0,0.00014273,2]
[354352498,1740439850168,-6126.77,0.00014273,2]
[354352499,1740439850178,-500.0,0.00014273,2]
[354352500,1740439850188,-930.4,0.00014273,2]
[354352501,1740439850198,-500.0,0.00014273,2]
[354352502,1740439850207,-500.0,0.00014273,2]
[354352503,1740439850216,-568.82,0.00014273,2]
[354352504,1740439850226,-17742.98,0.00014273,2]
[354352505,1740439850236,-794.84,0.00014273,2]
[354352506,1740439850246,-1574.8,0.00014273,2]
[354352507,1740439850255,-1100.35,0.00014273,2]
[354352508,1740439850265,-1720.52,0.00014273,2]
[354352509,1740439850275,-500.0,0.00014273,2]
[354352510,1740439850284,-500.0,0.00014273,2]
[354352511,1740439850294,-500.0,0.00014273,2]
[354352512,1740439850304,-500.0,0.00014273,2]
[354352513,1740439850314,-500.0,0.00014273,2]
[354352514,1740439850323,-457.99526491,0.00014273,2]
[354352515,1740439850333,-500.0,0.00014273,2]
[354352516,1740439850342,-500.0,0.00014273,2]
[354352517,1740439850351,-500.0,0.00014273,2]
[354352518,1740439850360,-500.0,0.00014273,2]
[354352519,1740439850370,-500.0,0.00014273,2]
[354352520,1740439850380,-500.0,0.00014273,2]
[354352521,1740439850389,-3282.59,0.00014273,2]
[354352522,1740439850399,-1167.82,0.00014273,2]
[354352523,1740439850409,-4125.19,0.00014273,2]
[354352524,1740439850419,-2231.77,0.00014273,2]
[354352525,1740439850433,-1547.34,0.00014273,2]
[354352526,1740439850444,-500.0,0.00014273,2]
[354352527,1740439850455,-2353.71,0.00014273,2]
[354352528,1740439850464,-1622.49,0.00014273,2]
[354352529,1740439850475,-500.0,0.00014273,2]
[354352530,1740439850484,-649.82,0.00014273,2]
[354352531,1740439850494,-500.0,0.00014273,2]
[354352532,1740439850503,-9642.36,0.00014273,2]
[354352533,1740439850513,-2968.68,0.00014273,2]
[354352534,1740439850522,-500.0,0.00014273,2]
[354352535,1740439850532,-500.0,0.00014273,2]
[354352536,1740439850541,-500.0,0.00014273,2]
[354352537,1740439850551,-1131.76,0.00014273,2]
[354352538,1740439850560,-3767.61,0.00014273,2]
[354352539,1740439850570,-563.359996,0.00014273,2]
[354352540,1740439850580,-151.0,0.000143,2]
[354352541,1740439850590,-1397.68772073,0.00014313,2]
[354352542,1740439850600,-1000.0,0.00014321,2]
[354352543,1740439850610,-306.03888274,0.00014321,2]
[354352544,1740439850620,-500.0,0.00014321,2]
[354352545,1740439850629,-500.0,0.00014356,2]
[354352546,1740439850639,-500.0,0.00014356,2]
[354352547,1740439850648,-315.3,0.00014356,2]
[354352548,1740439850658,-500.0,0.00014356,2]
[354352549,1740439850668,-502.24,0.00014356,2]
[354352550,1740439850677,-550.97,0.00014356,2]
[354352551,1740439850686,-500.0,0.00014356,2]
[354352552,1740439850696,-473.78484,0.00014356,2]
[354352553,1740439850706,-500.0,0.00014356,2]
[354352554,1740439850715,-500.0,0.00014356,2]
[354352555,1740439850725,-500.0,0.00014356,2]
[354352556,1740439850734,-500.0,0.00014356,2]
[354352557,1740439850744,-500.0,0.00014356,2]
[354352558,1740439850754,-500.0,0.00014356,2]
[354352559,1740439850763,-480.52915968,0.00014356,2]
[354352560,1740439850772,-1044.38,0.00014356,2]
[354352561,1740439850782,-500.0,0.00014356,2]
[354352562,1740439850791,-1560.73,0.00014356,2]
[354352563,1740439850801,-500.0,0.00014356,2]
[354352564,1740439850811,-1419.86,0.00014356,2]
[354352565,1740439850820,-450.4710928,0.00014356,2]
[354352566,1740439850829,-1146.58,0.00014356,2]
[354352567,1740439850839,-500.0,0.00014356,2]
[354352568,1740439850848,-500.0,0.00014356,2]
[354352569,1740439850858,-500.0,0.00014356,2]
[354352570,1740439850868,-551.37507611,0.00014356,2]
[354352571,1740439850877,-500.0,0.00014356,2]
[354352572,1740439850887,-500.0,0.00014356,2]
[354352573,1740439850897,-500.0,0.00014356,2]
[354352574,1740439850906,-853.98,0.00014356,2]
[354352575,1740439850916,-1614.85,0.00014356,2]
[354352576,1740439850925,-500.0,0.00014356,2]
[354352577,1740439850935,-500.0,0.00014356,2]
[354352578,1740439850945,-500.0,0.00014356,2]
[354352579,1740439850955,-500.0,0.00014356,2]
[354352580,1740439850964,-500.0,0.00014356,2]
[354352581,1740439850973,-517.45,0.00014356,2]
[354352582,1740439850983,-9318.21,0.00014356,2]
[354352583,1740439850993,-500.0,0.00014356,2]
[354352584,1740439851003,-500.0,0.00014356,2]
[354352585,1740439851013,-500.0,0.00014356,2]
[354352586,1740439851023,-46717.32,0.00014356,2]
[354352587,1740439851032,-500.0,0.00014356,2]
[354352588,1740439851041,-2744.75,0.00014356,2]
[354352589,1740439851051,-4421.62,0.00014356,2]
[354352590,1740439851061,-926.35,0.00014356,2]
[354352591,1740439851071,-2109.41,0.00014356,2]
[354352592,1740439851080,-813.65,0.00014356,2]
[354352593,1740439851089,-500.0,0.00014356,2]
[354352594,1740439851099,-2207.91,0.00014356,2]
[354352595,1740439851108,-13199.30946758,0.00014356,2]
[354352596,1740439851128,-1726.58053242,0.00014356,2]
[354352597,1740439851137,-1307.62,0.00014356,2]
[354352598,1740439851146,-674.09,0.00014356,2]
[354352599,1740439851156,-500.0,0.00014356,2]
[354352600,1740439851165,-6126.77,0.00014356,2]
[354352601,1740439851174,-930.4,0.00014356,2]
[354352602,1740439851184,-500.0,0.00014356,2]
[354352603,1740439851193,-500.0,0.00014356,2]
[354352604,1740439851204,-568.82,0.00014356,2]
[354352605,1740439851213,-14686.86529857,0.00014356,2]
[354352606,1740439851383,-440.87003063,0.00014356,2]
[354352607,1740439851395,-2615.2446708,0.00014356,2]
[354352608,1740439851404,-384.7123152,0.00014356,2]
[354352609,1740439851417,-410.1276848,0.00014356,2]
[354352610,1740439851426,-1574.8,0.00014356,2]
[354352611,1740439851438,-1100.35,0.00014356,2]
[354352612,1740439851447,-1720.52,0.00014356,2]
[354352613,1740439851457,-500.0,0.00014356,2]
[354352614,1740439851466,-500.0,0.00014356,2]
[354352615,1740439851476,-500.0,0.00014356,2]
[354352616,1740439851487,-186.8,0.00014356,2]
[354352617,1740439851497,-500.0,0.00014356,2]
[354352618,1740439851507,-500.0,0.00014356,2]
[354352619,1740439851517,-500.0,0.00014356,2]
[354352620,1740439851527,-500.0,0.00014356,2]
[354352621,1740439851536,-500.0,0.00014356,2]
[354352622,1740439851546,-500.0,0.00014356,2]
[354352623,1740439851556,-3282.59,0.00014356,2]
[354352624,1740439851565,-1167.82,0.00014356,2]
[354352625,1740439851574,-4125.19,0.00014356,2]
[354352626,1740439851584,-2231.77,0.00014356,2]
[354352627,1740439851593,-1547.34,0.00014356,2]
[354352628,1740439851602,-500.0,0.00014356,2]
[354352629,1740439851612,-2353.71,0.00014356,2]
[354352630,1740439851621,-1622.49,0.00014356,2]
[354352631,1740439851630,-500.0,0.00014356,2]
[354352632,1740439851639,-649.82,0.00014356,2]
[354352633,1740439851649,-500.0,0.00014356,2]
[354352634,1740439851658,-9642.36,0.00014356,2]
[354352635,1740439851668,-2968.68,0.00014356,2]
[354352636,1740439851677,-500.0,0.00014356,2]
[354352637,1740439851686,-500.0,0.00014356,2]
[354352638,1740439851696,-500.0,0.00014356,2]
[354352639,1740439851705,-1131.76,0.00014356,2]
[354352640,1740439851714,-3767.61,0.00014356,2]
[354352641,1740439851724,-363.0,0.000144,5]
[354352642,1740439851733,-151.0,0.000144,2]
[354352643,1740439851743,-1000.0,0.00014421,2]
[354352644,1740439851753,-1000.0,0.00014421,2]
[354352645,1740439851762,-32616.16083801,0.0001443,2]
[354352646,1740439851772,-500.0,0.00014438,2]
[354352647,1740439851782,-502.24,0.00014438,2]
[354352648,1740439851791,-550.97,0.00014438,2]
[354352649,1740439851800,-500.0,0.00014438,2]
[354352650,1740439851809,-500.0,0.00014438,2]
[354352651,1740439851819,-543.63,0.00014438,2]
[354352652,1740439851828,-500.0,0.00014438,2]
[354352653,1740439851837,-500.0,0.00014438,2]
[354352654,1740439851847,-500.0,0.00014438,2]
[354352655,1740439851856,-1044.38,0.00014438,2]
[354352656,1740439851866,-1560.73,0.00014438,2]
[354352657,1740439851875,-500.0,0.00014438,2]
[354352658,1740439851885,-1419.86,0.00014438,2]
[354352659,1740439851894,-1146.58,0.00014438,2]
[354352660,1740439851903,-500.0,0.00014438,2]
[354352661,1740439851912,-500.0,0.00014438,2]
[354352662,1740439851922,-500.0,0.00014438,2]
[354352663,1740439851931,-500.0,0.00014438,2]
[354352664,1740439851940,-853.98,0.00014438,2]
[354352665,1740439851950,-1614.85,0.00014438,2]
[354352666,1740439851959,-500.0,0.00014438,2]
[354352667,1740439851968,-500.0,0.00014438,2]
[354352668,1740439851978,-517.45,0.00014438,2]
[354352669,1740439851987,-500.0,0.00014438,2]
[354352670,1740439851996,-500.0,0.00014438,2]
[354352671,1740439852006,-500.0,0.00014438,2]
[354352672,1740439852016,-46717.32,0.00014438,2]
[354352673,1740439852025,-500.0,0.00014438,2]
[354352674,1740439852035,-2744.75,0.00014438,2]
[354352675,1740439852044,-4421.62,0.00014438,2]
[354352676,1740439852054,-926.35,0.00014438,2]
[354352677,1740439852064,-2109.41,0.00014438,2]
[354352678,1740439852074,-813.65,0.00014438,2]
[354352679,1740439852084,-500.0,0.00014438,2]
[354352680,1740439852094,-2207.91,0.00014438,2]
[354352681,1740439852103,-14925.89,0.00014438,2]
[354352682,1740439852113,-1307.62,0.00014438,2]
[354352683,1740439852122,-674.09,0.00014438,2]
[354352684,1740439852132,-500.0,0.00014438,2]
[354352685,1740439852142,-6126.77,0.00014438,2]
[354352686,1740439852151,-930.4,0.00014438,2]
[354352687,1740439852162,-500.0,0.00014438,2]
[354352688,1740439852171,-568.82,0.00014438,2]
[354352689,1740439852181,-17742.98,0.00014438,2]
[354352690,1740439852191,-794.84,0.00014438,2]
[354352691,1740439852201,-1574.8,0.00014438,2]
[354352692,1740439852210,-1100.35,0.00014438,2]
[354352693,1740439852219,-1720.52,0.00014438,2]
[354352694,1740439852229,-500.0,0.00014438,2]
[354352695,1740439852239,-325.02,0.00014438,2]
[354352696,1740439852248,-500.0,0.00014438,2]
[354352697,1740439852258,-500.0,0.00014438,2]
[354352698,1740439852267,-500.0,0.00014438,2]
[354352699,1740439852277,-500.0,0.00014438,2]
[354352700,1740439852286,-500.0,0.00014438,2]
[354352701,1740439852295,-230.98302328,0.00014438,2]
[354352702,1740439852305,-3282.59,0.00014438,2]
[354352703,1740439852314,-1167.82,0.00014438,2]
[354352704,1740439852323,-4125.19,0.00014438,2]
[354352705,1740439852333,-2231.77,0.00014438,2]
[354352706,1740439852343,-1547.34,0.00014438,2]
[354352707,1740439852390,-500.0,0.00014438,2]
[354352708,1740439852400,-2353.71,0.00014438,2]
[354352709,1740439852409,-1622.49,0.00014438,2]
[354352710,1740439852418,-500.0,0.00014438,2]
[354352711,1740439852428,-649.82,0.00014438,2]
[354352712,1740439852438,-500.0,0.00014438,2]
[354352713,1740439852448,-9642.36,0.00014438,2]
[354352714,1740439852457,-2968.68,0.00014438,2]
[354352715,1740439852466,-500.0,0.00014438,2]
[354352716,1740439852476,-500.0,0.00014438,2]
[354352717,1740439852486,-1131.76,0.00014438,2]
[354352718,1740439852495,-3767.61,0.00014438,2]
[354352719,1740439852504,-109784.49049246,0.000145,2]
[354352720,1740439852515,-7167.0,0.000145,2]
[354352721,1740439852525,-500.0,0.0001452,2]
[354352722,1740439852534,-502.24,0.0001452,2]
[354352723,1740439852543,-550.97,0.0001452,2]
[354352724,1740439852553,-500.0,0.0001452,2]
[354352725,1740439852563,-407.92,0.0001452,2]
[354352726,1740439852575,-500.0,0.0001452,2]
[354352727,1740439852584,-168.83,0.0001452,2]
[354352728,1740439852593,-1044.38,0.0001452,2]
[354352729,1740439852603,-1560.73,0.0001452,2]
[354352730,1740439852612,-500.0,0.0001452,2]
[354352731,1740439852621,-1419.86,0.0001452,2]
[354352732,1740439852631,-1146.58,0.0001452,2]
[354352733,1740439852640,-500.0,0.0001452,2]
[354352734,1740439852649,-500.0,0.0001452,2]
[354352735,1740439852659,-500.0,0.0001452,2]
[354352736,1740439852668,-500.0,0.0001452,2]
[354352737,1740439852677,-853.98,0.0001452,2]
[354352738,1740439852688,-1614.85,0.0001452,2]
[354352739,1740439852697,-500.0,0.0001452,2]
[354352740,1740439852707,-500.0,0.0001452,2]
[354352741,1740439852716,-517.45,0.0001452,2]
[354352742,1740439852726,-500.0,0.0001452,2]
[354352743,1740439852735,-500.0,0.0001452,2]
[354352744,1740439852745,-500.0,0.0001452,2]
[354352745,1740439852754,-46717.32,0.0001452,2]
[354352746,1740439852763,-2744.75,0.0001452,2]
[354352747,1740439852773,-4421.62,0.0001452,2]
[354352748,1740439852782,-926.35,0.0001452,2]
[354352749,1740439852791,-2109.41,0.0001452,2]
[354352750,1740439852800,-813.65,0.0001452,2]
[354352751,1740439852809,-500.0,0.0001452,2]
[354352752,1740439852819,-2207.91,0.0001452,2]
[354352753,1740439852828,-14925.89,0.0001452,2]
[354352754,1740439852837,-1307.62,0.0001452,2]
[354352755,1740439852846,-674.09,0.0001452,2]
[354352756,1740439852856,-500.0,0.0001452,2]
[354352757,1740439852866,-6126.77,0.0001452,2]
[354352758,1740439852874,-930.4,0.0001452,2]
[354352759,1740439852885,-431.81,0.0001452,2]
[354352760,1740439852895,-568.82,0.0001452,2]
[354352761,1740439852904,-17742.98,0.0001452,2]
[354352762,1740439852913,-794.84,0.0001452,2]
[354352763,1740439852922,-1574.8,0.0001452,2]
[354352764,1740439852931,-1100.35,0.0001452,2]
[354352765,1740439852941,-1720.52,0.0001452,2]
[354352766,1740439852950,-500.0,0.0001452,2]
[354352767,1740439852960,-500.0,0.0001452,2]
[354352768,1740439852970,-500.0,0.0001452,2]
[354352769,1740439852979,-500.0,0.0001452,2]
[354352770,1740439852988,-500.0,0.0001452,2]
[354352771,1740439852998,-3282.59,0.0001452,2]
[354352772,1740439853007,-1167.82,0.0001452,2]
[354352773,1740439853016,-4125.19,0.0001452,2]
[354352774,1740439853026,-2231.77,0.0001452,2]
[354352775,1740439853035,-1547.34,0.0001452,2]
[354352776,1740439853045,-500.0,0.0001452,2]
[354352777,1740439853054,-2353.71,0.0001452,2]
[354352778,1740439853064,-1622.49,0.0001452,2]
[354352779,1740439853076,-500.0,0.0001452,2]
[354352780,1740439853086,-649.82,0.0001452,2]
[354352781,1740439853096,-500.0,0.0001452,2]
[354352782,1740439853105,-9642.36,0.0001452,2]
[354352783,1740439853115,-2968.68,0.0001452,2]
[354352784,1740439853125,-500.0,0.0001452,2]
[354352785,1740439853135,-500.0,0.0001452,2]
[354352786,1740439853144,-1131.76,0.0001452,2]
[354352787,1740439853154,-3767.61,0.0001452,2]
[354352788,1740439853164,-186.29,0.00014602,2]
[354352789,1740439853174,-502.24,0.00014602,2]
[354352790,1740439853183,-550.97,0.00014602,2]
[354352791,1740439853193,-500.0,0.00014602,2]
[354352792,1740439853203,-500.0,0.00014602,2]
[354352793,1740439853212,-1044.38,0.00014602,2]
[354352794,1740439853221,-1560.73,0.00014602,2]
[354352795,1740439853231,-500.0,0.00014602,2]
[354352796,1740439853240,-1419.86,0.00014602,2]
[354352797,1740439853249,-1146.58,0.00014602,2]
[354352798,1740439853258,-500.0,0.00014602,2]
[354352799,1740439853268,-500.0,0.00014602,2]
[354352800,1740439853278,-500.0,0.00014602,2]
[354352801,1740439853287,-315.06,0.00014602,2]
[354352802,1740439853297,-853.98,0.00014602,2]
[354352803,1740439853308,-1614.85,0.00014602,2]
[354352804,1740439853317,-500.0,0.00014602,2]
[354352805,1740439853327,-500.0,0.00014602,2]
[354352806,1740439853337,-517.45,0.00014602,2]
[354352807,1740439853347,-500.0,0.00014602,2]
[354352808,1740439853356,-500.0,0.00014602,2]
[354352809,1740439853365,-500.0,0.00014602,2]
[354352810,1740439853375,-46717.32,0.00014602,2]
[354352811,1740439853384,-2744.75,0.00014602,2]
[354352812,1740439853394,-4421.62,0.00014602,2]
[354352813,1740439853404,-926.35,0.00014602,2]
[354352814,1740439853413,-2109.41,0.00014602,2]
[354352815,1740439853423,-813.65,0.00014602,2]
[354352816,1740439853439,-500.0,0.00014602,2]
[354352817,1740439853451,-2207.91,0.00014602,2]
[354352818,1740439853460,-14925.89,0.00014602,2]
[354352819,1740439853470,-1307.62,0.00014602,2]
[354352820,1740439853481,-674.09,0.00014602,2]
[354352821,1740439853491,-500.0,0.00014602,2]
[354352822,1740439853502,-6126.77,0.00014602,2]
[354352823,1740439853513,-930.4,0.00014602,2]
[354352824,1740439853523,-568.82,0.00014602,2]
[354352825,1740439853534,-17742.98,0.00014602,2]
[354352826,1740439853544,-794.84,0.00014602,2]
[354352827,1740439853553,-1574.8,0.00014602,2]
[354352828,1740439853563,-1100.35,0.00014602,2]
[354352829,1740439853572,-1720.52,0.00014602,2]
[354352830,1740439853581,-500.0,0.00014602,2]
[354352831,1740439853591,-500.0,0.00014602,2]
[354352832,1740439853601,-500.0,0.00014602,2]
[354352833,1740439853611,-500.0,0.00014602,2]
[354352834,1740439853620,-500.0,0.00014602,2]
[354352835,1740439853630,-3282.59,0.00014602,2]
[354352836,1740439853639,-1167.82,0.00014602,2]
[354352837,1740439853649,-4125.19,0.00014602,2]
[354352838,1740439853658,-2231.77,0.00014602,2]
[354352839,1740439853667,-1547.34,0.00014602,2]
[354352840,1740439853677,-500.0,0.00014602,2]
[354352841,1740439853686,-2353.71,0.00014602,2]
[354352842,1740439853696,-1622.49,0.00014602,2]
[354352843,1740439853706,-500.0,0.00014602,2]
[354352844,1740439853716,-649.82,0.00014602,2]
[354352845,1740439853726,-500.0,0.00014602,2]
[354352846,1740439853736,-9642.36,0.00014602,2]
[354352847,1740439853746,-2968.68,0.00014602,2]
[354352848,1740439853756,-500.0,0.00014602,2]
[354352849,1740439853766,-1131.76,0.00014602,2]
[354352850,1740439853776,-3767.61,0.00014602,2]
[354352851,1740439853785,-502.24,0.00014684,2]
[354352852,1740439853795,-550.97,0.00014684,2]
[354352853,1740439853805,-500.0,0.00014684,2]
[354352854,1740439853814,-500.0,0.00014684,2]
[354352855,1740439853823,-1044.38,0.00014684,2]
[354352856,1740439853833,-1560.73,0.00014684,2]
[354352857,1740439853843,-500.0,0.00014684,2]
[354352858,1740439853852,-1419.86,0.00014684,2]
[354352859,1740439853862,-1146.58,0.00014684,2]
[354352860,1740439853871,-500.0,0.00014684,2]
[354352861,1740439853881,-500.0,0.00014684,2]
[354352862,1740439853890,-500.0,0.00014684,2]
[354352863,1740439853900,-853.98,0.00014684,2]
[354352864,1740439853909,-1614.85,0.00014684,2]
[354352865,1740439853919,-500.0,0.00014684,2]
[354352866,1740439853928,-500.0,0.00014684,2]
[354352867,1740439853937,-517.45,0.00014684,2]
[354352868,1740439853946,-500.0,0.00014684,2]
[354352869,1740439853956,-300.43919088,0.00014684,2]
[354352870,1740439853966,-500.0,0.00014684,2]
[354352871,1740439853975,-46717.32,0.00014684,2]
[354352872,1740439853985,-2744.75,0.00014684,2]
[354352873,1740439853995,-4421.62,0.00014684,2]
[354352874,1740439854004,-926.35,0.00014684,2]
[354352875,1740439854015,-2109.41,0.00014684,2]
[354352876,1740439854024,-813.65,0.00014684,2]
[354352877,1740439854034,-500.0,0.00014684,2]
[354352878,1740439854043,-2207.91,0.00014684,2]
[354352879,1740439854053,-14925.89,0.00014684,2]
[354352880,1740439854062,-1307.62,0.00014684,2]
[354352881,1740439854072,-674.09,0.00014684,2]
[354352882,1740439854082,-500.0,0.00014684,2]
[354352883,1740439854091,-6126.77,0.00014684,2]
[354352884,1740439854100,-930.4,0.00014684,2]
[354352885,1740439854110,-568.82,0.00014684,2]
[354352886,1740439854121,-17742.98,0.00014684,2]
[354352887,1740439854130,-794.84,0.00014684,2]
[354352888,1740439854140,-1574.8,0.00014684,2]
[354352889,1740439854150,-1100.35,0.00014684,2]
[354352890,1740439854159,-1720.52,0.00014684,2]
[354352891,1740439854169,-498.36,0.00014684,2]
[354352892,1740439854179,-500.0,0.00014684,2]
[354352893,1740439854189,-500.0,0.00014684,2]
[354352894,1740439854199,-500.0,0.00014684,2]
[354352895,1740439854209,-500.0,0.00014684,2]
[354352896,1740439854218,-3282.59,0.00014684,2]
[354352897,1740439854227,-1167.82,0.00014684,2]
[354352898,1740439854237,-4125.19,0.00014684,2]
[354352899,1740439854246,-2231.77,0.00014684,2]
[354352900,1740439854255,-1547.34,0.00014684,2]
[354352901,1740439854265,-500.0,0.00014684,2]
[354352902,1740439854274,-2353.71,0.00014684,2]
[354352903,1740439854284,-1622.49,0.00014684,2]
[354352904,1740439854293,-500.0,0.00014684,2]
[354352905,1740439854302,-649.82,0.00014684,2]
[354352906,1740439854312,-500.0,0.00014684,2]
[354352907,1740439854321,-9642.36,0.00014684,2]
[354352908,1740439854331,-2968.68,0.00014684,2]
[354352909,1740439854341,-500.0,0.00014684,2]
[354352910,1740439854350,-1131.76,0.00014684,2]
[354352911,1740439854360,-3767.61,0.00014684,2]
[354352912,1740439854370,-1000.0,0.00014721,2]
[354352913,1740439854379,-1000.0,0.00014721,2]
[354352914,1740439854389,-502.24,0.00014767,2]
[354352915,1740439854399,-550.97,0.00014767,2]
[354352916,1740439854410,-500.0,0.00014767,2]
[354352917,1740439854420,-500.0,0.00014767,2]
[354352918,1740439854431,-1044.38,0.00014767,2]
[354352919,1740439854445,-1560.73,0.00014767,2]
[354352920,1740439854455,-500.0,0.00014767,2]
[354352921,1740439854465,-1419.86,0.00014767,2]
[354352922,1740439854476,-1146.58,0.00014767,2]
[354352923,1740439854486,-500.0,0.00014767,2]
[354352924,1740439854496,-500.0,0.00014767,2]
[354352925,1740439854506,-500.0,0.00014767,2]
[354352926,1740439854518,-853.98,0.00014767,2]
[354352927,1740439854527,-1614.85,0.00014767,2]
[354352928,1740439854537,-500.0,0.00014767,2]
[354352929,1740439854546,-500.0,0.00014767,2]
[354352930,1740439854556,-517.45,0.00014767,2]